Workbook

Sheet LvB_PdC
A1: LEIDINGSVERLIESBEREKENING
A2: Project | B2: Projet 1
A4: Pomp referentie | B4: Pomp(e) 1
A6: LINAIRE LEIDINGSVERLIEZEN | M6: SINGULIERE LEIDINGSVERLIEZEN
A7: Sectie | B7: Debiet | C7: Lengte | D7: Materiaal | E7: Nominale Diameter | F7: Debiet | G7: Buiten- diameter | H7: Binnen- diameter | I7: Snelheid | J7: Dp/m | K7: Lineaire leidingsverliezen | M7: Koppeling | O7: Bocht 90° r/D=1,5 | Q7: Bocht 45° r/D=1,5 | S7: T (in lijn) | U7: T (aftakking) | W7: Convergent | Y7: Divergent | AA7: Bol- of vlinderkraan | AC7: Regelkraan (TA) | AE7: Terugslag- klep | AG7: Y Filter | AI7: Ontluchter & Vuilafscheider | AK7: Divers | AL7: Singuliere leidingsverliezen
B8: m³/h | C8: m | E8: DN | F8: l/min | G8: mm | H8: mm | I8: m/s | J8: Pa | K8: Pa | M8: # | N8: Pa | O8: # | P8: Pa | Q8: # | R8: Pa | S8: # | T8: Pa | U8: # | V8: Pa | W8: # | X8: Pa | Y8: # | Z8: Pa | AA8: # | AB8: Pa | AC8: # | AD8: Pa | AE8: # | AF8: Pa | AG8: # | AH8: Pa | AI8: # | AJ8: Pa | AK8: Pa | AL8: Pa
B9: 40 | C9: 20 | D9: Verzinkt staal / Acier Galvanisé (Geberit Mapress) | E9: 108,0 x 2,0 | F9: 666.4 | G9: 108 | H9: 104 | I9: 1.308018057 | J9: 156.4930736 | K9: =J9*C9 -> 3129.861471 | M9: 4 | N9: 187.8 | O9: 10 | P9: 2652 | S9: 3 | T9: 385 | W9: 1 | X9: 26 | AA9: 2 | AB9: 50 | AE9: 1 | AF9: 249.3730994 | AL9: =N9+P9+R9+T9+V9+X9+Z9+AB9+AD9+AF9+AH9+AJ9+AK9 -> 3550.173099
B10: 3 | C10: 20 | D10: HDPE (Eupen Eucalene) | E10: 40 x 3,7 | F10: 49.98 | G10: 40 | H10: 32.6 | I10: 0.998404388 | J10: 345.7556839 | K10: =J10*C10 -> 6915.113678 | O10: 3 | P10: 449 | AL10: 449
D11: Koper / Cuivre (Geberit Mapress ; Sanco ; Wicu) | E11: 76,1 x 2,0 | K11: =J11*C11 -> 0 | O11: 4 | AL11: 0
D12: PEX (Comap MultiSkin; Begetube Alpex; Henco) | E12: 50 x 4 | K12: 0 | AL12: 0
D13: Inox (Geberit Mapress ; Viega 2205 & 2203) | E13: 54,0 x 1,5 | K13: 0 | O13: 2 | AL13: 0
D14: PEX (Comap MultiSkin; Begetube Alpex; Henco) | E14: 16 x 2 | K14: 0 | AL14: 0
D15: PEX (Comap MultiSkin; Begetube Alpex; Henco) | E15: 16 x 2 | K15: 0 | AL15: 0
D16: PEX (Comap MultiSkin; Begetube Alpex; Henco) | E16: 16 x 2 | K16: 0 | AL16: 0
D17: PEX (Comap MultiSkin; Begetube Alpex; Henco) | E17: 16 x 2 | K17: 0 | AL17: 0
D18: PEX (Comap MultiSkin; Begetube Alpex; Henco) | E18: 16 x 2 | K18: 0 | AL18: 0
B21: TOTALE LEIDINGSVERLIEZEN | H21: OPMERKINGEN
B23: Totale liniaire leidingsverliezen | E23: =SUM(K9:K18) -> 10044.97515 | F23: Pa
B26: Totale singuliere leidingsverliezen | E26: =SUM(AL9:AL18) -> 3999.173099 | F26: Pa
B29: Totale leidingsverliezen | E29: =E23+E26 -> 14044.14825 | F29: Pa
E31: =+E29:E29/10000 -> 1.404414825 | F31: mWK
B34: +25% Reserve | E34: =E31*1.25 -> 1.755518531 | F34: mWK | H34: PARAMETERS
B37: WERKINGSPUNT POMP | H37: Watertemperatuur [°] | P37: 20
B38: Verschildruk | E38: =E34 -> 1.755518531 | F38: mWK | H38: Glycol [%] | P38: 0
B40: Debiet | E40: 12 | F40: m³/h | H40: Taal | P40: Nl
A44: Deze berekeningstool kan worden gebruikt voor de berekening van leidingsverliezen in HVAC installaties. De berekeningsmethode wordt toegelicht in tab 'Berekeningsmethode'. Wilo kan niet aansprakelijk worden gesteld voor mogelijke tekortkomingen of fouten in de tool.

Sheet PDF (hidden)
A1: =LvB_PdC!A1 -> LEIDINGSVERLIESBEREKENING
A2: =LvB_PdC!A2 -> Project | B2: =LvB_PdC!B2 -> Projet 1
A4: =LvB_PdC!A4 -> Pomp referentie | B4: =LvB_PdC!B4 -> Pomp(e) 1
A6: =LvB_PdC!A6 -> LINAIRE LEIDINGSVERLIEZEN | I6: =LvB_PdC!M6 -> SINGULIERE LEIDINGSVERLIEZEN
A7: =LvB_PdC!A7 -> Sectie | B7: =LvB_PdC!B7 -> Debiet | C7: =LvB_PdC!C7 -> Lengte | D7: =LvB_PdC!D7 -> Materiaal | E7: =LvB_PdC!E7 -> Nominale Diameter | F7: =LvB_PdC!J7 -> Dp/m | G7: =LvB_PdC!K7 -> Lineaire leidingsverliezen | I7: =LvB_PdC!M7 -> Koppeling | K7: =LvB_PdC!O7 -> Bocht 90° r/D=1,5 | M7: =LvB_PdC!Q7 -> Bocht 45° r/D=1,5 | O7: =LvB_PdC!S7 -> T (in lijn) | Q7: =LvB_PdC!U7 -> T (aftakking) | S7: =LvB_PdC!W7 -> Convergent | U7: =LvB_PdC!Y7 -> Divergent | W7: =LvB_PdC!AA7 -> Bol- of vlinderkraan | Y7: =LvB_PdC!AC7 -> Regelkraan (TA) | AA7: =LvB_PdC!AE7 -> Terugslag- klep | AC7: =LvB_PdC!AG7 -> Y Filter | AE7: =LvB_PdC!AI7 -> Ontluchter & Vuilafscheider | AG7: =LvB_PdC!AK7 -> Divers | AH7: =LvB_PdC!AL7 -> Singuliere leidingsverliezen
B8: m³/h | C8: m | E8: DN | F8: Pa | G8: Pa | I8: # | J8: Pa | K8: # | L8: Pa | M8: # | N8: Pa | O8: # | P8: Pa | Q8: # | R8: Pa | S8: # | T8: Pa | U8: # | V8: Pa | W8: # | X8: Pa | Y8: # | Z8: Pa | AA8: # | AB8: Pa | AC8: # | AD8: Pa | AE8: # | AF8: Pa | AG8: Pa | AH8: Pa
A9: =IF(ISBLANK(LvB_PdC!A9),"",LvB_PdC!A9) ->  | B9: =IF(ISBLANK(LvB_PdC!B9),"",LvB_PdC!B9) -> 40 | C9: =IF(ISBLANK(LvB_PdC!C9),"",LvB_PdC!C9) -> 20 | D9: =IF(ISBLANK(LvB_PdC!B9),"",LvB_PdC!D9) -> Verzinkt staal / Acier Galvanisé (Geberit Mapress) | E9: =IF(ISBLANK(LvB_PdC!B9),"",LvB_PdC!E9) -> 108,0 x 2,0 | F9: =IF(ISBLANK(LvB_PdC!J9),"",LvB_PdC!J9) -> 156.4930736 | G9: =IF(ISBLANK(LvB_PdC!B9),"",LvB_PdC!K9) -> 3129.861471 | I9: =IF(ISBLANK(LvB_PdC!M9),"",LvB_PdC!M9) -> 4 | J9: =IF(ISBLANK(LvB_PdC!N9),"",LvB_PdC!N9) -> 187.8 | K9: =IF(ISBLANK(LvB_PdC!O9),"",LvB_PdC!O9) -> 10 | L9: =IF(ISBLANK(LvB_PdC!P9),"",LvB_PdC!P9) -> 2652 | M9: =IF(ISBLANK(LvB_PdC!Q9),"",LvB_PdC!Q9) ->  | N9: =IF(ISBLANK(LvB_PdC!R9),"",LvB_PdC!R9) ->  | O9: =IF(ISBLANK(LvB_PdC!S9),"",LvB_PdC!S9) -> 3 | P9: =IF(ISBLANK(LvB_PdC!T9),"",LvB_PdC!T9) -> 385 | Q9: =IF(ISBLANK(LvB_PdC!U9),"",LvB_PdC!U9) ->  | R9: =IF(ISBLANK(LvB_PdC!V9),"",LvB_PdC!V9) ->  | S9: =IF(ISBLANK(LvB_PdC!W9),"",LvB_PdC!W9) -> 1 | T9: =IF(ISBLANK(LvB_PdC!X9),"",LvB_PdC!X9) -> 26 | U9: =IF(ISBLANK(LvB_PdC!Y9),"",LvB_PdC!Y9) ->  | V9: =IF(ISBLANK(LvB_PdC!Z9),"",LvB_PdC!Z9) ->  | W9: =IF(ISBLANK(LvB_PdC!AA9),"",LvB_PdC!AA9) -> 2 | X9: =IF(ISBLANK(LvB_PdC!AB9),"",LvB_PdC!AB9) -> 50 | Y9: =IF(ISBLANK(LvB_PdC!AC9),"",LvB_PdC!AC9) ->  | Z9: =IF(ISBLANK(LvB_PdC!AD9),"",LvB_PdC!AD9) ->  | AA9: =IF(ISBLANK(LvB_PdC!AE9),"",LvB_PdC!AE9) -> 1 | AB9: =IF(ISBLANK(LvB_PdC!AF9),"",LvB_PdC!AF9) -> 249.3730994 | AC9: =IF(ISBLANK(LvB_PdC!AG9),"",LvB_PdC!AG9) ->  | AD9: =IF(ISBLANK(LvB_PdC!AH9),"",LvB_PdC!AH9) ->  | AE9: =IF(ISBLANK(LvB_PdC!AI9),"",LvB_PdC!AI9) ->  | AF9: =IF(ISBLANK(LvB_PdC!AJ9),"",LvB_PdC!AJ9) ->  | AG9: =IF(ISBLANK(LvB_PdC!AK9),"",LvB_PdC!AK9) ->  | AH9: =IF(ISBLANK(LvB_PdC!B9),"",LvB_PdC!AL9) -> 3550.173099
A10: =IF(ISBLANK(LvB_PdC!A10),"",LvB_PdC!A10) ->  | B10: =IF(ISBLANK(LvB_PdC!B10),"",LvB_PdC!B10) -> 3 | C10: =IF(ISBLANK(LvB_PdC!C10),"",LvB_PdC!C10) -> 20 | D10: =IF(ISBLANK(LvB_PdC!B10),"",LvB_PdC!D10) -> HDPE (Eupen Eucalene) | E10: =IF(ISBLANK(LvB_PdC!B10),"",LvB_PdC!E10) -> 40 x 3,7 | F10: =IF(ISBLANK(LvB_PdC!J10),"",LvB_PdC!J10) -> 345.7556839 | G10: =IF(ISBLANK(LvB_PdC!B10),"",LvB_PdC!K10) -> 6915.113678 | I10: =IF(ISBLANK(LvB_PdC!M10),"",LvB_PdC!M10) ->  | J10: =IF(ISBLANK(LvB_PdC!N10),"",LvB_PdC!N10) ->  | K10: =IF(ISBLANK(LvB_PdC!O10),"",LvB_PdC!O10) -> 3 | L10: =IF(ISBLANK(LvB_PdC!P10),"",LvB_PdC!P10) -> 449 | M10: =IF(ISBLANK(LvB_PdC!Q10),"",LvB_PdC!Q10) ->  | N10: =IF(ISBLANK(LvB_PdC!R10),"",LvB_PdC!R10) ->  | O10: =IF(ISBLANK(LvB_PdC!S10),"",LvB_PdC!S10) ->  | P10: =IF(ISBLANK(LvB_PdC!T10),"",LvB_PdC!T10) ->  | Q10: =IF(ISBLANK(LvB_PdC!U10),"",LvB_PdC!U10) ->  | R10: =IF(ISBLANK(LvB_PdC!V10),"",LvB_PdC!V10) ->  | S10: =IF(ISBLANK(LvB_PdC!W10),"",LvB_PdC!W10) ->  | T10: =IF(ISBLANK(LvB_PdC!X10),"",LvB_PdC!X10) ->  | U10: =IF(ISBLANK(LvB_PdC!Y10),"",LvB_PdC!Y10) ->  | V10: =IF(ISBLANK(LvB_PdC!Z10),"",LvB_PdC!Z10) ->  | W10: =IF(ISBLANK(LvB_PdC!AA10),"",LvB_PdC!AA10) ->  | X10: =IF(ISBLANK(LvB_PdC!AB10),"",LvB_PdC!AB10) ->  | Y10: =IF(ISBLANK(LvB_PdC!AC10),"",LvB_PdC!AC10) ->  | Z10: =IF(ISBLANK(LvB_PdC!AD10),"",LvB_PdC!AD10) ->  | AA10: =IF(ISBLANK(LvB_PdC!AE10),"",LvB_PdC!AE10) ->  | AB10: =IF(ISBLANK(LvB_PdC!AF10),"",LvB_PdC!AF10) ->  | AC10: =IF(ISBLANK(LvB_PdC!AG10),"",LvB_PdC!AG10) ->  | AD10: =IF(ISBLANK(LvB_PdC!AH10),"",LvB_PdC!AH10) ->  | AE10: =IF(ISBLANK(LvB_PdC!AI10),"",LvB_PdC!AI10) ->  | AF10: =IF(ISBLANK(LvB_PdC!AJ10),"",LvB_PdC!AJ10) ->  | AG10: =IF(ISBLANK(LvB_PdC!AK10),"",LvB_PdC!AK10) ->  | AH10: =IF(ISBLANK(LvB_PdC!B10),"",LvB_PdC!AL10) -> 449
A11: =IF(ISBLANK(LvB_PdC!A11),"",LvB_PdC!A11) ->  | B11: =IF(ISBLANK(LvB_PdC!B11),"",LvB_PdC!B11) ->  | C11: =IF(ISBLANK(LvB_PdC!C11),"",LvB_PdC!C11) ->  | D11: =IF(ISBLANK(LvB_PdC!B11),"",LvB_PdC!D11) ->  | E11: =IF(ISBLANK(LvB_PdC!B11),"",LvB_PdC!E11) ->  | F11: =IF(ISBLANK(LvB_PdC!J11),"",LvB_PdC!J11) ->  | G11: =IF(ISBLANK(LvB_PdC!B11),"",LvB_PdC!K11) ->  | I11: =IF(ISBLANK(LvB_PdC!M11),"",LvB_PdC!M11) ->  | J11: =IF(ISBLANK(LvB_PdC!N11),"",LvB_PdC!N11) ->  | K11: =IF(ISBLANK(LvB_PdC!O11),"",LvB_PdC!O11) -> 4 | L11: =IF(ISBLANK(LvB_PdC!P11),"",LvB_PdC!P11) ->  | M11: =IF(ISBLANK(LvB_PdC!Q11),"",LvB_PdC!Q11) ->  | N11: =IF(ISBLANK(LvB_PdC!R11),"",LvB_PdC!R11) ->  | O11: =IF(ISBLANK(LvB_PdC!S11),"",LvB_PdC!S11) ->  | P11: =IF(ISBLANK(LvB_PdC!T11),"",LvB_PdC!T11) ->  | Q11: =IF(ISBLANK(LvB_PdC!U11),"",LvB_PdC!U11) ->  | R11: =IF(ISBLANK(LvB_PdC!V11),"",LvB_PdC!V11) ->  | S11: =IF(ISBLANK(LvB_PdC!W11),"",LvB_PdC!W11) ->  | T11: =IF(ISBLANK(LvB_PdC!X11),"",LvB_PdC!X11) ->  | U11: =IF(ISBLANK(LvB_PdC!Y11),"",LvB_PdC!Y11) ->  | V11: =IF(ISBLANK(LvB_PdC!Z11),"",LvB_PdC!Z11) ->  | W11: =IF(ISBLANK(LvB_PdC!AA11),"",LvB_PdC!AA11) ->  | X11: =IF(ISBLANK(LvB_PdC!AB11),"",LvB_PdC!AB11) ->  | Y11: =IF(ISBLANK(LvB_PdC!AC11),"",LvB_PdC!AC11) ->  | Z11: =IF(ISBLANK(LvB_PdC!AD11),"",LvB_PdC!AD11) ->  | AA11: =IF(ISBLANK(LvB_PdC!AE11),"",LvB_PdC!AE11) ->  | AB11: =IF(ISBLANK(LvB_PdC!AF11),"",LvB_PdC!AF11) ->  | AC11: =IF(ISBLANK(LvB_PdC!AG11),"",LvB_PdC!AG11) ->  | AD11: =IF(ISBLANK(LvB_PdC!AH11),"",LvB_PdC!AH11) ->  | AE11: =IF(ISBLANK(LvB_PdC!AI11),"",LvB_PdC!AI11) ->  | AF11: =IF(ISBLANK(LvB_PdC!AJ11),"",LvB_PdC!AJ11) ->  | AG11: =IF(ISBLANK(LvB_PdC!AK11),"",LvB_PdC!AK11) ->  | AH11: =IF(ISBLANK(LvB_PdC!B11),"",LvB_PdC!AL11) -> 
A12: =IF(ISBLANK(LvB_PdC!A12),"",LvB_PdC!A12) ->  | B12: =IF(ISBLANK(LvB_PdC!B12),"",LvB_PdC!B12) ->  | C12: =IF(ISBLANK(LvB_PdC!C12),"",LvB_PdC!C12) ->  | D12: =IF(ISBLANK(LvB_PdC!B12),"",LvB_PdC!D12) ->  | E12: =IF(ISBLANK(LvB_PdC!B12),"",LvB_PdC!E12) ->  | F12: =IF(ISBLANK(LvB_PdC!J12),"",LvB_PdC!J12) ->  | G12: =IF(ISBLANK(LvB_PdC!B12),"",LvB_PdC!K12) ->  | I12: =IF(ISBLANK(LvB_PdC!M12),"",LvB_PdC!M12) ->  | J12: =IF(ISBLANK(LvB_PdC!N12),"",LvB_PdC!N12) ->  | K12: =IF(ISBLANK(LvB_PdC!O12),"",LvB_PdC!O12) ->  | L12: =IF(ISBLANK(LvB_PdC!P12),"",LvB_PdC!P12) ->  | M12: =IF(ISBLANK(LvB_PdC!Q12),"",LvB_PdC!Q12) ->  | N12: =IF(ISBLANK(LvB_PdC!R12),"",LvB_PdC!R12) ->  | O12: =IF(ISBLANK(LvB_PdC!S12),"",LvB_PdC!S12) ->  | P12: =IF(ISBLANK(LvB_PdC!T12),"",LvB_PdC!T12) ->  | Q12: =IF(ISBLANK(LvB_PdC!U12),"",LvB_PdC!U12) ->  | R12: =IF(ISBLANK(LvB_PdC!V12),"",LvB_PdC!V12) ->  | S12: =IF(ISBLANK(LvB_PdC!W12),"",LvB_PdC!W12) ->  | T12: =IF(ISBLANK(LvB_PdC!X12),"",LvB_PdC!X12) ->  | U12: =IF(ISBLANK(LvB_PdC!Y12),"",LvB_PdC!Y12) ->  | V12: =IF(ISBLANK(LvB_PdC!Z12),"",LvB_PdC!Z12) ->  | W12: =IF(ISBLANK(LvB_PdC!AA12),"",LvB_PdC!AA12) ->  | X12: =IF(ISBLANK(LvB_PdC!AB12),"",LvB_PdC!AB12) ->  | Y12: =IF(ISBLANK(LvB_PdC!AC12),"",LvB_PdC!AC12) ->  | Z12: =IF(ISBLANK(LvB_PdC!AD12),"",LvB_PdC!AD12) ->  | AA12: =IF(ISBLANK(LvB_PdC!AE12),"",LvB_PdC!AE12) ->  | AB12: =IF(ISBLANK(LvB_PdC!AF12),"",LvB_PdC!AF12) ->  | AC12: =IF(ISBLANK(LvB_PdC!AG12),"",LvB_PdC!AG12) ->  | AD12: =IF(ISBLANK(LvB_PdC!AH12),"",LvB_PdC!AH12) ->  | AE12: =IF(ISBLANK(LvB_PdC!AI12),"",LvB_PdC!AI12) ->  | AF12: =IF(ISBLANK(LvB_PdC!AJ12),"",LvB_PdC!AJ12) ->  | AG12: =IF(ISBLANK(LvB_PdC!AK12),"",LvB_PdC!AK12) ->  | AH12: =IF(ISBLANK(LvB_PdC!B12),"",LvB_PdC!AL12) -> 
A13: =IF(ISBLANK(LvB_PdC!A13),"",LvB_PdC!A13) ->  | B13: =IF(ISBLANK(LvB_PdC!B13),"",LvB_PdC!B13) ->  | C13: =IF(ISBLANK(LvB_PdC!C13),"",LvB_PdC!C13) ->  | D13: =IF(ISBLANK(LvB_PdC!B13),"",LvB_PdC!D13) ->  | E13: =IF(ISBLANK(LvB_PdC!B13),"",LvB_PdC!E13) ->  | F13: =IF(ISBLANK(LvB_PdC!J13),"",LvB_PdC!J13) ->  | G13: =IF(ISBLANK(LvB_PdC!B13),"",LvB_PdC!K13) ->  | I13: =IF(ISBLANK(LvB_PdC!M13),"",LvB_PdC!M13) ->  | J13: =IF(ISBLANK(LvB_PdC!N13),"",LvB_PdC!N13) ->  | K13: =IF(ISBLANK(LvB_PdC!O13),"",LvB_PdC!O13) -> 2 | L13: =IF(ISBLANK(LvB_PdC!P13),"",LvB_PdC!P13) ->  | M13: =IF(ISBLANK(LvB_PdC!Q13),"",LvB_PdC!Q13) ->  | N13: =IF(ISBLANK(LvB_PdC!R13),"",LvB_PdC!R13) ->  | O13: =IF(ISBLANK(LvB_PdC!S13),"",LvB_PdC!S13) ->  | P13: =IF(ISBLANK(LvB_PdC!T13),"",LvB_PdC!T13) ->  | Q13: =IF(ISBLANK(LvB_PdC!U13),"",LvB_PdC!U13) ->  | R13: =IF(ISBLANK(LvB_PdC!V13),"",LvB_PdC!V13) ->  | S13: =IF(ISBLANK(LvB_PdC!W13),"",LvB_PdC!W13) ->  | T13: =IF(ISBLANK(LvB_PdC!X13),"",LvB_PdC!X13) ->  | U13: =IF(ISBLANK(LvB_PdC!Y13),"",LvB_PdC!Y13) ->  | V13: =IF(ISBLANK(LvB_PdC!Z13),"",LvB_PdC!Z13) ->  | W13: =IF(ISBLANK(LvB_PdC!AA13),"",LvB_PdC!AA13) ->  | X13: =IF(ISBLANK(LvB_PdC!AB13),"",LvB_PdC!AB13) ->  | Y13: =IF(ISBLANK(LvB_PdC!AC13),"",LvB_PdC!AC13) ->  | Z13: =IF(ISBLANK(LvB_PdC!AD13),"",LvB_PdC!AD13) ->  | AA13: =IF(ISBLANK(LvB_PdC!AE13),"",LvB_PdC!AE13) ->  | AB13: =IF(ISBLANK(LvB_PdC!AF13),"",LvB_PdC!AF13) ->  | AC13: =IF(ISBLANK(LvB_PdC!AG13),"",LvB_PdC!AG13) ->  | AD13: =IF(ISBLANK(LvB_PdC!AH13),"",LvB_PdC!AH13) ->  | AE13: =IF(ISBLANK(LvB_PdC!AI13),"",LvB_PdC!AI13) ->  | AF13: =IF(ISBLANK(LvB_PdC!AJ13),"",LvB_PdC!AJ13) ->  | AG13: =IF(ISBLANK(LvB_PdC!AK13),"",LvB_PdC!AK13) ->  | AH13: =IF(ISBLANK(LvB_PdC!B13),"",LvB_PdC!AL13) -> 
A14: =IF(ISBLANK(LvB_PdC!A14),"",LvB_PdC!A14) ->  | B14: =IF(ISBLANK(LvB_PdC!B14),"",LvB_PdC!B14) ->  | C14: =IF(ISBLANK(LvB_PdC!C14),"",LvB_PdC!C14) ->  | D14: =IF(ISBLANK(LvB_PdC!B14),"",LvB_PdC!D14) ->  | E14: =IF(ISBLANK(LvB_PdC!B14),"",LvB_PdC!E14) ->  | F14: =IF(ISBLANK(LvB_PdC!J14),"",LvB_PdC!J14) ->  | G14: =IF(ISBLANK(LvB_PdC!B14),"",LvB_PdC!K14) ->  | I14: =IF(ISBLANK(LvB_PdC!M14),"",LvB_PdC!M14) ->  | J14: =IF(ISBLANK(LvB_PdC!N14),"",LvB_PdC!N14) ->  | K14: =IF(ISBLANK(LvB_PdC!O14),"",LvB_PdC!O14) ->  | L14: =IF(ISBLANK(LvB_PdC!P14),"",LvB_PdC!P14) ->  | M14: =IF(ISBLANK(LvB_PdC!Q14),"",LvB_PdC!Q14) ->  | N14: =IF(ISBLANK(LvB_PdC!R14),"",LvB_PdC!R14) ->  | O14: =IF(ISBLANK(LvB_PdC!S14),"",LvB_PdC!S14) ->  | P14: =IF(ISBLANK(LvB_PdC!T14),"",LvB_PdC!T14) ->  | Q14: =IF(ISBLANK(LvB_PdC!U14),"",LvB_PdC!U14) ->  | R14: =IF(ISBLANK(LvB_PdC!V14),"",LvB_PdC!V14) ->  | S14: =IF(ISBLANK(LvB_PdC!W14),"",LvB_PdC!W14) ->  | T14: =IF(ISBLANK(LvB_PdC!X14),"",LvB_PdC!X14) ->  | U14: =IF(ISBLANK(LvB_PdC!Y14),"",LvB_PdC!Y14) ->  | V14: =IF(ISBLANK(LvB_PdC!Z14),"",LvB_PdC!Z14) ->  | W14: =IF(ISBLANK(LvB_PdC!AA14),"",LvB_PdC!AA14) ->  | X14: =IF(ISBLANK(LvB_PdC!AB14),"",LvB_PdC!AB14) ->  | Y14: =IF(ISBLANK(LvB_PdC!AC14),"",LvB_PdC!AC14) ->  | Z14: =IF(ISBLANK(LvB_PdC!AD14),"",LvB_PdC!AD14) ->  | AA14: =IF(ISBLANK(LvB_PdC!AE14),"",LvB_PdC!AE14) ->  | AB14: =IF(ISBLANK(LvB_PdC!AF14),"",LvB_PdC!AF14) ->  | AC14: =IF(ISBLANK(LvB_PdC!AG14),"",LvB_PdC!AG14) ->  | AD14: =IF(ISBLANK(LvB_PdC!AH14),"",LvB_PdC!AH14) ->  | AE14: =IF(ISBLANK(LvB_PdC!AI14),"",LvB_PdC!AI14) ->  | AF14: =IF(ISBLANK(LvB_PdC!AJ14),"",LvB_PdC!AJ14) ->  | AG14: =IF(ISBLANK(LvB_PdC!AK14),"",LvB_PdC!AK14) ->  | AH14: =IF(ISBLANK(LvB_PdC!B14),"",LvB_PdC!AL14) -> 
A15: =IF(ISBLANK(LvB_PdC!A15),"",LvB_PdC!A15) ->  | B15: =IF(ISBLANK(LvB_PdC!B15),"",LvB_PdC!B15) ->  | C15: =IF(ISBLANK(LvB_PdC!C15),"",LvB_PdC!C15) ->  | D15: =IF(ISBLANK(LvB_PdC!B15),"",LvB_PdC!D15) ->  | E15: =IF(ISBLANK(LvB_PdC!B15),"",LvB_PdC!E15) ->  | F15: =IF(ISBLANK(LvB_PdC!J15),"",LvB_PdC!J15) ->  | G15: =IF(ISBLANK(LvB_PdC!B15),"",LvB_PdC!K15) ->  | I15: =IF(ISBLANK(LvB_PdC!M15),"",LvB_PdC!M15) ->  | J15: =IF(ISBLANK(LvB_PdC!N15),"",LvB_PdC!N15) ->  | K15: =IF(ISBLANK(LvB_PdC!O15),"",LvB_PdC!O15) ->  | L15: =IF(ISBLANK(LvB_PdC!P15),"",LvB_PdC!P15) ->  | M15: =IF(ISBLANK(LvB_PdC!Q15),"",LvB_PdC!Q15) ->  | N15: =IF(ISBLANK(LvB_PdC!R15),"",LvB_PdC!R15) ->  | O15: =IF(ISBLANK(LvB_PdC!S15),"",LvB_PdC!S15) ->  | P15: =IF(ISBLANK(LvB_PdC!T15),"",LvB_PdC!T15) ->  | Q15: =IF(ISBLANK(LvB_PdC!U15),"",LvB_PdC!U15) ->  | R15: =IF(ISBLANK(LvB_PdC!V15),"",LvB_PdC!V15) ->  | S15: =IF(ISBLANK(LvB_PdC!W15),"",LvB_PdC!W15) ->  | T15: =IF(ISBLANK(LvB_PdC!X15),"",LvB_PdC!X15) ->  | U15: =IF(ISBLANK(LvB_PdC!Y15),"",LvB_PdC!Y15) ->  | V15: =IF(ISBLANK(LvB_PdC!Z15),"",LvB_PdC!Z15) ->  | W15: =IF(ISBLANK(LvB_PdC!AA15),"",LvB_PdC!AA15) ->  | X15: =IF(ISBLANK(LvB_PdC!AB15),"",LvB_PdC!AB15) ->  | Y15: =IF(ISBLANK(LvB_PdC!AC15),"",LvB_PdC!AC15) ->  | Z15: =IF(ISBLANK(LvB_PdC!AD15),"",LvB_PdC!AD15) ->  | AA15: =IF(ISBLANK(LvB_PdC!AE15),"",LvB_PdC!AE15) ->  | AB15: =IF(ISBLANK(LvB_PdC!AF15),"",LvB_PdC!AF15) ->  | AC15: =IF(ISBLANK(LvB_PdC!AG15),"",LvB_PdC!AG15) ->  | AD15: =IF(ISBLANK(LvB_PdC!AH15),"",LvB_PdC!AH15) ->  | AE15: =IF(ISBLANK(LvB_PdC!AI15),"",LvB_PdC!AI15) ->  | AF15: =IF(ISBLANK(LvB_PdC!AJ15),"",LvB_PdC!AJ15) ->  | AG15: =IF(ISBLANK(LvB_PdC!AK15),"",LvB_PdC!AK15) ->  | AH15: =IF(ISBLANK(LvB_PdC!B15),"",LvB_PdC!AL15) -> 
A16: =IF(ISBLANK(LvB_PdC!A16),"",LvB_PdC!A16) ->  | B16: =IF(ISBLANK(LvB_PdC!B16),"",LvB_PdC!B16) ->  | C16: =IF(ISBLANK(LvB_PdC!C16),"",LvB_PdC!C16) ->  | D16: =IF(ISBLANK(LvB_PdC!B16),"",LvB_PdC!D16) ->  | E16: =IF(ISBLANK(LvB_PdC!B16),"",LvB_PdC!E16) ->  | F16: =IF(ISBLANK(LvB_PdC!J16),"",LvB_PdC!J16) ->  | G16: =IF(ISBLANK(LvB_PdC!B16),"",LvB_PdC!K16) ->  | I16: =IF(ISBLANK(LvB_PdC!M16),"",LvB_PdC!M16) ->  | J16: =IF(ISBLANK(LvB_PdC!N16),"",LvB_PdC!N16) ->  | K16: =IF(ISBLANK(LvB_PdC!O16),"",LvB_PdC!O16) ->  | L16: =IF(ISBLANK(LvB_PdC!P16),"",LvB_PdC!P16) ->  | M16: =IF(ISBLANK(LvB_PdC!Q16),"",LvB_PdC!Q16) ->  | N16: =IF(ISBLANK(LvB_PdC!R16),"",LvB_PdC!R16) ->  | O16: =IF(ISBLANK(LvB_PdC!S16),"",LvB_PdC!S16) ->  | P16: =IF(ISBLANK(LvB_PdC!T16),"",LvB_PdC!T16) ->  | Q16: =IF(ISBLANK(LvB_PdC!U16),"",LvB_PdC!U16) ->  | R16: =IF(ISBLANK(LvB_PdC!V16),"",LvB_PdC!V16) ->  | S16: =IF(ISBLANK(LvB_PdC!W16),"",LvB_PdC!W16) ->  | T16: =IF(ISBLANK(LvB_PdC!X16),"",LvB_PdC!X16) ->  | U16: =IF(ISBLANK(LvB_PdC!Y16),"",LvB_PdC!Y16) ->  | V16: =IF(ISBLANK(LvB_PdC!Z16),"",LvB_PdC!Z16) ->  | W16: =IF(ISBLANK(LvB_PdC!AA16),"",LvB_PdC!AA16) ->  | X16: =IF(ISBLANK(LvB_PdC!AB16),"",LvB_PdC!AB16) ->  | Y16: =IF(ISBLANK(LvB_PdC!AC16),"",LvB_PdC!AC16) ->  | Z16: =IF(ISBLANK(LvB_PdC!AD16),"",LvB_PdC!AD16) ->  | AA16: =IF(ISBLANK(LvB_PdC!AE16),"",LvB_PdC!AE16) ->  | AB16: =IF(ISBLANK(LvB_PdC!AF16),"",LvB_PdC!AF16) ->  | AC16: =IF(ISBLANK(LvB_PdC!AG16),"",LvB_PdC!AG16) ->  | AD16: =IF(ISBLANK(LvB_PdC!AH16),"",LvB_PdC!AH16) ->  | AE16: =IF(ISBLANK(LvB_PdC!AI16),"",LvB_PdC!AI16) ->  | AF16: =IF(ISBLANK(LvB_PdC!AJ16),"",LvB_PdC!AJ16) ->  | AG16: =IF(ISBLANK(LvB_PdC!AK16),"",LvB_PdC!AK16) ->  | AH16: =IF(ISBLANK(LvB_PdC!B16),"",LvB_PdC!AL16) -> 
A17: =IF(ISBLANK(LvB_PdC!A17),"",LvB_PdC!A17) ->  | B17: =IF(ISBLANK(LvB_PdC!B17),"",LvB_PdC!B17) ->  | C17: =IF(ISBLANK(LvB_PdC!C17),"",LvB_PdC!C17) ->  | D17: =IF(ISBLANK(LvB_PdC!B17),"",LvB_PdC!D17) ->  | E17: =IF(ISBLANK(LvB_PdC!B17),"",LvB_PdC!E17) ->  | F17: =IF(ISBLANK(LvB_PdC!J17),"",LvB_PdC!J17) ->  | G17: =IF(ISBLANK(LvB_PdC!B17),"",LvB_PdC!K17) ->  | I17: =IF(ISBLANK(LvB_PdC!M17),"",LvB_PdC!M17) ->  | J17: =IF(ISBLANK(LvB_PdC!N17),"",LvB_PdC!N17) ->  | K17: =IF(ISBLANK(LvB_PdC!O17),"",LvB_PdC!O17) ->  | L17: =IF(ISBLANK(LvB_PdC!P17),"",LvB_PdC!P17) ->  | M17: =IF(ISBLANK(LvB_PdC!Q17),"",LvB_PdC!Q17) ->  | N17: =IF(ISBLANK(LvB_PdC!R17),"",LvB_PdC!R17) ->  | O17: =IF(ISBLANK(LvB_PdC!S17),"",LvB_PdC!S17) ->  | P17: =IF(ISBLANK(LvB_PdC!T17),"",LvB_PdC!T17) ->  | Q17: =IF(ISBLANK(LvB_PdC!U17),"",LvB_PdC!U17) ->  | R17: =IF(ISBLANK(LvB_PdC!V17),"",LvB_PdC!V17) ->  | S17: =IF(ISBLANK(LvB_PdC!W17),"",LvB_PdC!W17) ->  | T17: =IF(ISBLANK(LvB_PdC!X17),"",LvB_PdC!X17) ->  | U17: =IF(ISBLANK(LvB_PdC!Y17),"",LvB_PdC!Y17) ->  | V17: =IF(ISBLANK(LvB_PdC!Z17),"",LvB_PdC!Z17) ->  | W17: =IF(ISBLANK(LvB_PdC!AA17),"",LvB_PdC!AA17) ->  | X17: =IF(ISBLANK(LvB_PdC!AB17),"",LvB_PdC!AB17) ->  | Y17: =IF(ISBLANK(LvB_PdC!AC17),"",LvB_PdC!AC17) ->  | Z17: =IF(ISBLANK(LvB_PdC!AD17),"",LvB_PdC!AD17) ->  | AA17: =IF(ISBLANK(LvB_PdC!AE17),"",LvB_PdC!AE17) ->  | AB17: =IF(ISBLANK(LvB_PdC!AF17),"",LvB_PdC!AF17) ->  | AC17: =IF(ISBLANK(LvB_PdC!AG17),"",LvB_PdC!AG17) ->  | AD17: =IF(ISBLANK(LvB_PdC!AH17),"",LvB_PdC!AH17) ->  | AE17: =IF(ISBLANK(LvB_PdC!AI17),"",LvB_PdC!AI17) ->  | AF17: =IF(ISBLANK(LvB_PdC!AJ17),"",LvB_PdC!AJ17) ->  | AG17: =IF(ISBLANK(LvB_PdC!AK17),"",LvB_PdC!AK17) ->  | AH17: =IF(ISBLANK(LvB_PdC!B17),"",LvB_PdC!AL17) -> 
A18: =IF(ISBLANK(LvB_PdC!A18),"",LvB_PdC!A18) ->  | B18: =IF(ISBLANK(LvB_PdC!B18),"",LvB_PdC!B18) ->  | C18: =IF(ISBLANK(LvB_PdC!C18),"",LvB_PdC!C18) ->  | D18: =IF(ISBLANK(LvB_PdC!B18),"",LvB_PdC!D18) ->  | E18: =IF(ISBLANK(LvB_PdC!B18),"",LvB_PdC!E18) ->  | F18: =IF(ISBLANK(LvB_PdC!J18),"",LvB_PdC!J18) ->  | G18: =IF(ISBLANK(LvB_PdC!B18),"",LvB_PdC!K18) ->  | I18: =IF(ISBLANK(LvB_PdC!M18),"",LvB_PdC!M18) ->  | J18: =IF(ISBLANK(LvB_PdC!N18),"",LvB_PdC!N18) ->  | K18: =IF(ISBLANK(LvB_PdC!O18),"",LvB_PdC!O18) ->  | L18: =IF(ISBLANK(LvB_PdC!P18),"",LvB_PdC!P18) ->  | M18: =IF(ISBLANK(LvB_PdC!Q18),"",LvB_PdC!Q18) ->  | N18: =IF(ISBLANK(LvB_PdC!R18),"",LvB_PdC!R18) ->  | O18: =IF(ISBLANK(LvB_PdC!S18),"",LvB_PdC!S18) ->  | P18: =IF(ISBLANK(LvB_PdC!T18),"",LvB_PdC!T18) ->  | Q18: =IF(ISBLANK(LvB_PdC!U18),"",LvB_PdC!U18) ->  | R18: =IF(ISBLANK(LvB_PdC!V18),"",LvB_PdC!V18) ->  | S18: =IF(ISBLANK(LvB_PdC!W18),"",LvB_PdC!W18) ->  | T18: =IF(ISBLANK(LvB_PdC!X18),"",LvB_PdC!X18) ->  | U18: =IF(ISBLANK(LvB_PdC!Y18),"",LvB_PdC!Y18) ->  | V18: =IF(ISBLANK(LvB_PdC!Z18),"",LvB_PdC!Z18) ->  | W18: =IF(ISBLANK(LvB_PdC!AA18),"",LvB_PdC!AA18) ->  | X18: =IF(ISBLANK(LvB_PdC!AB18),"",LvB_PdC!AB18) ->  | Y18: =IF(ISBLANK(LvB_PdC!AC18),"",LvB_PdC!AC18) ->  | Z18: =IF(ISBLANK(LvB_PdC!AD18),"",LvB_PdC!AD18) ->  | AA18: =IF(ISBLANK(LvB_PdC!AE18),"",LvB_PdC!AE18) ->  | AB18: =IF(ISBLANK(LvB_PdC!AF18),"",LvB_PdC!AF18) ->  | AC18: =IF(ISBLANK(LvB_PdC!AG18),"",LvB_PdC!AG18) ->  | AD18: =IF(ISBLANK(LvB_PdC!AH18),"",LvB_PdC!AH18) ->  | AE18: =IF(ISBLANK(LvB_PdC!AI18),"",LvB_PdC!AI18) ->  | AF18: =IF(ISBLANK(LvB_PdC!AJ18),"",LvB_PdC!AJ18) ->  | AG18: =IF(ISBLANK(LvB_PdC!AK18),"",LvB_PdC!AK18) ->  | AH18: =IF(ISBLANK(LvB_PdC!B18),"",LvB_PdC!AL18) -> 
A20: =IF(ISBLANK(LvB_PdC!B21),"",LvB_PdC!B21) -> TOTALE LEIDINGSVERLIEZEN | I20: =IF(ISBLANK(LvB_PdC!H21),"",LvB_PdC!H21) -> OPMERKINGEN
A22: =IF(ISBLANK(LvB_PdC!B23),"",LvB_PdC!B23) -> Totale liniaire leidingsverliezen | E22: =SUM(G9:G18) -> 10044.97515 | G22: Pa | I22: =IF(ISBLANK(LvB_PdC!H23),"",LvB_PdC!H23) -> 
A25: =IF(ISBLANK(LvB_PdC!B26),"",LvB_PdC!B26) -> Totale singuliere leidingsverliezen | E25: =SUM(AH9:AH18) -> 3999.173099 | G25: Pa
A28: =IF(ISBLANK(LvB_PdC!B29),"",LvB_PdC!B29) -> Totale leidingsverliezen | E28: =E22+E25 -> 14044.14825 | G28: Pa
E30: =+E28:E28/10000 -> 1.404414825 | G30: mCE
A33: =IF(ISBLANK(LvB_PdC!B34),"",LvB_PdC!B34) -> +25% Reserve | F33: =E30*1.25 -> 1.755518531 | G33: mCE
A36: =IF(ISBLANK(LvB_PdC!B37),"",LvB_PdC!B37) -> WERKINGSPUNT POMP
A37: =IF(ISBLANK(LvB_PdC!B38),"",LvB_PdC!B38) -> Verschildruk | F37: =IF(ISBLANK(LvB_PdC!E38),"",LvB_PdC!E38) -> 1.755518531 | G37: =IF(ISBLANK(LvB_PdC!F38),"",LvB_PdC!F38) -> mWK
A39: =IF(ISBLANK(LvB_PdC!B40),"",LvB_PdC!B40) -> Debiet | F39: =IF(ISBLANK(LvB_PdC!E40),"",LvB_PdC!E40) -> 12 | G39: =IF(ISBLANK(LvB_PdC!F40),"",LvB_PdC!F40) -> m³/h
A42: =IF(ISBLANK(LvB_PdC!H34),"",LvB_PdC!H34) -> PARAMETERS
A44: =IF(ISBLANK(LvB_PdC!H37),"",LvB_PdC!H37) -> Watertemperatuur [°] | F44: =IF(ISBLANK(LvB_PdC!P37),"",LvB_PdC!P37) -> 20
A46: =IF(ISBLANK(LvB_PdC!H38),"",LvB_PdC!H38) -> Glycol [%] | F46: =IF(ISBLANK(LvB_PdC!P38),"",LvB_PdC!P38) -> 0
A49: =IF(ISBLANK(LvB_PdC!A44),"",LvB_PdC!A44) -> Deze berekeningstool kan worden gebruikt voor de berekening van leidingsverliezen in HVAC installaties. De berekeningsmethode wordt toegelicht in tab 'Berekeningsmethode'. Wilo kan niet aansprakelijk worden gesteld voor mogelijke tekortkomingen of fouten in de tool.

Sheet Berekeningsbasis (hidden)
B2: Berekeningsbasis - Base de calcul
B3: temperatuur | C3: % glycol
B5: 10 | C5: 0
B6: 20 | C6: 0.1
B7: 30 | C7: 0.15
B8: 40 | C8: 0.2
B9: 50 | C9: 0.25
B10: 60 | C10: 0.3
B11: 70 | C11: 0.35
B12: 80 | C12: 0.4
B13: 90 | C13: 0.45
B14: 100 | C14: 0.5
B16: Materials
B17: PEX (Comap MultiSkin; Begetube Alpex; Henco)
B18: PEX (Geberit Mepla)
B19: HDPE (Geberit PEHD)
B20: HDPE (Eupen Eucalene)
B21: LDPE (Eupen Eucalene LDPE40)
B22: Verzinkt staal / Acier Galvanisé (Geberit Mapress)
B23: Inox (Geberit Mapress ; Viega 2205 & 2203)
B24: Koper / Cuivre (Geberit Mapress ; Sanco ; Wicu)

Sheet Leidingen (hidden)
A1: PEX (Comap MultiSkin; Begetube Alpex; Henco)
A2: Nominale Diameter Diamètre nominal | B2: Binnendiameter Diamètre intérieur | C2: Buisdikte Epaisseur | D2: Vmax | E2: Comment | F2: Koppeling | G2: Courbes 90° à souder r/D=1,5 | H2: Courbes 45° à souder r/D=1,5 | I2: Té (en ligne) | J2: Té (branche) | K2: Convergent | L2: Divergent | M2: Robinet à boule ou papillon | N2: Robinet de règlage (TA) | O2: Clapet de retenue | P2: Filtre | Q2: ontluchter/ vuilafscheider
B3: A | C3: n | D3: (m/s) | F3: z | G3: z | H3: z | I3: z | J3: z | K3: z | L3: z | M3: Kv | N3: Pa | O3: Kv | P3: z | Q3: Kv | R3: a | S3: n
A4: 12 x 1,6 | B4: 8.8 | C4: 1.6 | D4: 0.35 | E4: De gewenste maximale watersnelheid is 0,4 m/s | F4: =F5*1.1 -> 0.374 | G4: 1.749 | H4: 0.979 | I4: 0.495 | J4: 1.749 | K4: 0.616 | L4: =L5*1.1 -> 0.616 | M4: 32 | N4: 3000 | O4: 4 | P4: 2 | Q4: 93 | R4: 154.46 | S4: 1.793
A5: 14 x 2 | B5: 10 | C5: 2 | D5: 0.4 | E5: De gewenste maximale watersnelheid is 0,4 m/s | F5: 0.34 | G5: 1.59 | H5: 0.89 | I5: 0.45 | J5: 1.59 | K5: 0.56 | L5: 0.56 | M5: 32 | N5: 3000 | O5: 4 | P5: 2 | Q5: 93 | R5: 104 | S5: 1.75
A6: 16 x 2 | B6: 12 | C6: 2 | D6: 0.5 | E6: De gewenste maximale watersnelheid is 0,4 m/s | F6: 0.34 | G6: 1.35 | H6: 0.89 | I6: 0.45 | J6: 1.59 | K6: 0.56 | L6: 0.56 | M6: 32 | N6: 3000 | O6: 4 | P6: 3 | Q6: 93 | R6: 43.91 | S6: 1.75
A7: 18 x 2 | B7: 14 | C7: 2 | D7: 0.5 | E7: De gewenste maximale watersnelheid is 0,4 m/s | F7: 0.34 | G7: 1.44 | H7: 0.89 | I7: 0.45 | J7: 1.59 | K7: 0.56 | L7: 0.56 | M7: 32 | N7: 3000 | O7: 4 | P7: 3.5 | Q7: 93 | R7: 21.1 | S7: 1.75
A8: 20 x 2 | B8: 16 | C8: 2 | D8: 0.5 | E8: De gewenste maximale watersnelheid is 0,4 m/s | F8: 0.26 | G8: 1.44 | H8: 0.89 | I8: 0.33 | J8: 1.41 | K8: 0.56 | L8: 0.56 | M8: 32 | N8: 3000 | O8: 8 | P8: 4 | Q8: 93 | R8: 11.21 | S8: 1.75
A9: 26 x 3 | B9: 20 | C9: 3 | D9: 0.5 | E9: De gewenste maximale watersnelheid is 0,42 m/s | F9: 0.43 | G9: 1.44 | H9: 0.89 | I9: 0.54 | J9: 1.51 | K9: 0.56 | L9: 0.56 | M9: 36 | N9: 3000 | O9: 10.3 | P9: 4.5 | Q9: 93 | R9: 3.8919 | S9: 1.75
A10: 32 x 3 | B10: 26 | C10: 3 | D10: 0.6 | E10: De gewenste maximale watersnelheid is 0,49 m/s | F10: 0.3 | G10: 1.44 | H10: 0.51 | I10: 0.33 | J10: 1.54 | K10: 0.55 | L10: 0.55 | M10: 40 | N10: 3000 | O10: 24 | P10: 5.1 | Q10: 93 | R10: 1.128 | S10: 1.75
A11: 40 x 3,5 | B11: 33 | C11: 3.5 | D11: 0.7 | E11: De gewenste maximale watersnelheid is 0,6 m/s | F11: 0.3 | G11: 1.44 | H11: 0.51 | I11: 0.33 | J11: 1.54 | K11: 0.55 | L11: 0.55 | M11: 50 | N11: 3000 | O11: 32 | P11: 5.1 | Q11: 93 | R11: 0.3588 | S11: 1.75
A12: 50 x 4 | B12: 42 | C12: 4 | D12: 0.8 | E12: De gewenste maximale watersnelheid is 0,66 m/s | F12: 0.3 | G12: 1.44 | H12: 0.51 | I12: 0.33 | J12: 1.54 | K12: 0.41 | L12: 0.41 | M12: 85 | N12: 3000 | O12: 40 | P12: 5.1 | Q12: 93 | R12: 0.1114 | S12: 1.75
A13: 63 x 4,5 | B13: 54 | C13: 4.5 | D13: 0.9 | E13: De gewenste maximale watersnelheid is 0,79 m/s | F13: 0.3 | G13: 1.44 | H13: 0.51 | I13: 0.33 | J13: 1.54 | K13: 0.6 | L13: 0.6 | M13: 215 | N13: 3000 | O13: 72.5 | P13: 5.1 | Q13: 140 | R13: 0.0352 | S13: 1.75
A14: 75 x 5 | B14: 65 | C14: 5 | D14: 0.9 | E14: De maximale watersnelheid kan verhoogd worden tot 1,2 m/s indien de buizen gelegen zijn in onbezette ruimten en indien er geen akoestische beperkingen van kracht zijn | F14: 0.3 | G14: 1.44 | H14: 0.51 | I14: 0.33 | J14: 1.54 | K14: 0.49 | L14: 0.49 | M14: 215 | N14: 3000 | O14: 72.5 | P14: 5.1 | Q14: 140 | R14: 0.0149 | S14: 1.75
A15: 90 x 7 | B15: 76 | C15: 7 | D15: 1 | E15: De maximale watersnelheid kan verhoogd worden tot 1,2 m/s indien de buizen gelegen zijn in onbezette ruimten en indien er geen akoestische beperkingen van kracht zijn | F15: 0.327 | G15: 1.666 | H15: 0.614 | I15: 0.347 | J15: 1.884 | K15: 1.6 | L15: 1.6 | M15: 215 | N15: 3000 | O15: 72.5 | P15: 5.1 | Q15: 140 | R15: 0.00403 | S15: 1.813
A17: PEX (Geberit Mepla)
A18: Nominale Diameter Diamètre nominal | B18: Binnendiameter Diamètre intérieur | C18: Buisdikte Epaisseur | D18: Vmax | E18: Comment | F18: Koppeling | G18: Courbes 90° à souder r/D=1,5 | H18: Courbes 45° à souder r/D=1,5 | I18: Té (en ligne) | J18: Té (branche) | K18: Convergent | L18: Divergent | M18: Robinet à boule ou papillon | N18: Robinet de règlage (TA) | O18: Clapet de retenue | P18: Filtre | Q18: ontluchter/ vuilafscheider
B19: mm | C19: mm | D19: (m/s) | F19: z | G19: z | H19: z | I19: z | J19: z | K19: z | L19: z | M19: Kv | N19: Pa | O19: Kv | P19: z | Q19: Kv | R19: a | S19: n
A20: 16 x 2,25 | B20: 11.5 | C20: 2.25 | D20: 0.5 | E20: De gewenste maximale watersnelheid is 0,4 m/s | F20: 2 | G20: 3.45 | H20: =G20/2 -> 1.725 | I20: 3.1 | J20: 4.5 | K20: 0.85 | L20: 0.85 | M20: 32 | N20: 3000 | O20: 4 | P20: 2 | Q20: 93 | R20: 46.56 | S20: 1.75
A21: 20 x 2,5 | B21: 15 | C21: 2.5 | D21: 0.5 | E21: De gewenste maximale watersnelheid is 0,4 m/s | F21: 1 | G21: 2.1 | H21: =G21/2 -> 1.05 | I21: 1.4 | J21: 3.25 | K21: 0.86 | L21: 0.86 | M21: 32 | N21: 3000 | O21: 4 | P21: 2 | Q21: 93 | R21: 13.23 | S21: 1.75
A22: 26 x 3 | B22: 20 | C22: 3 | D22: 0.5 | E22: De gewenste maximale watersnelheid is 0,4 m/s | F22: 0.35 | G22: 1.4 | H22: 0.7 | I22: 0.85 | J22: 1.7 | K22: 0.78 | L22: 0.78 | M22: 32 | N22: 3000 | O22: 8 | P22: 3 | Q22: 93 | R22: 3.1832 | S22: 1.77
A23: 32 x 3 | B23: 26 | C23: 3 | D23: 0.5 | E23: De gewenste maximale watersnelheid is 0,42 m/s | F23: 0.25 | G23: 1 | H23: 0.5 | I23: 0.55 | J23: 1.2 | K23: 0.69 | L23: 0.69 | M23: 36 | N23: 3000 | O23: 10.3 | P23: 3.5 | Q23: 93 | R23: 0.9238 | S23: 1.77
A24: 40 x 3,5 | B24: 33 | C24: 3.5 | D24: 0.6 | E24: De gewenste maximale watersnelheid is 0,49 m/s | F24: 0.2 | G24: 0.8 | H24: 0.4 | I24: 0.4 | J24: 0.85 | K24: 0.64 | L24: 0.64 | M24: 40 | N24: 3000 | O24: 24 | P24: 4 | Q24: 93 | R24: 0.29 | S24: 1.77
A25: 50 x 4 | B25: 42 | C25: 4 | D25: 0.7 | E25: De gewenste maximale watersnelheid is 0,6 m/s | F25: 0.2 | G25: 0.55 | H25: 0.275 | I25: 0.35 | J25: 0.7 | K25: 0.64 | L25: 0.64 | M25: 50 | N25: 3000 | O25: 32 | P25: 4.5 | Q25: 93 | R25: 0.0852 | S25: 1.79
A26: 63 x 4,5 | B26: 54 | C26: 4.5 | D26: 0.8 | E26: De gewenste maximale watersnelheid is 0,66 m/s | F26: 0.1 | G26: 0.5 | H26: 0.25 | I26: 0.3 | J26: 0.65 | K26: 0.64 | L26: 0.64 | M26: 85 | N26: 3000 | O26: 40 | P26: 5.1 | Q26: 93 | R26: 0.0231 | S26: 1.8147
A27: 75 x 4,7 | B27: 65.6 | C27: 4.7 | D27: 0.9 | E27: De gewenste maximale watersnelheid is 0,79 m/s | F27: 0.1 | G27: 0.48 | H27: 0.24 | I27: 0.27 | J27: 0.6 | K27: 0.64 | L27: 0.64 | M27: 85 | N27: 3000 | O27: 40 | P27: 5.1 | Q27: 93 | R27: 0.0078 | S27: 1.8387
A29: HDPE (Geberit PEHD)
A30: Nominale Diameter Diamètre nominal | B30: Binnendiameter Diamètre intérieur | C30: Buisdikte Epaisseur | D30: Vmax | E30: Comment | F30: Koppeling | G30: Courbes 90° à souder r/D=1,5 | H30: Courbes 45° à souder r/D=1,5 | I30: Té (en ligne) | J30: Té (branche) | K30: Convergent | L30: Divergent | M30: Robinet à boule ou papillon | N30: Robinet de règlage (TA) | O30: Clapet de retenue | P30: Filtre | Q30: ontluchter/ vuilafscheider
B31: mm | C31: mm | D31: (m/s) | F31: z | G31: z | H31: z | I31: z | J31: z | K31: z | L31: z | M31: Kv | N31: Pa | O31: Kv | P31: z | Q31: Kv | R31: a | S31: n
A32: 30 x 3,0 | B32: 26 | C32: 3 | D32: 0.6 | E32: De gewenste maximale watersnelheid is 0,49 m/s | F32: 0.25 | G32: 1 | H32: =G32/2 -> 0.5 | I32: 0.55 | J32: 1.2 | K32: 0.69 | L32: 0.69 | M32: 36 | N32: 3000 | O32: 10.3 | P32: 3.5 | Q32: 93 | R32: =7000000*B32^(-4.811) -> 1.090589377 | S32: 1.75
A33: 40 x 3,0 | B33: 34 | C33: 3 | D33: 0.7 | E33: De gewenste maximale watersnelheid is 0,6 m/s | F33: 0.2 | G33: 0.8 | H33: 0.4 | I33: 0.4 | J33: 0.85 | K33: 0.64 | L33: 0.64 | M33: 40 | N33: 3000 | O33: 24 | P33: 4 | Q33: 93 | R33: =7000000*B33^(-4.811) -> 0.300021909 | S33: 1.75
A34: 50 x 3,0 | B34: 44 | C34: 3 | D34: 0.8 | E34: De gewenste maximale watersnelheid is 0,66 m/s | F34: 0.2 | G34: 0.55 | H34: 0.275 | I34: 0.35 | J34: 0.7 | K34: 0.64 | L34: 0.64 | M34: 50 | N34: 3000 | O34: 32 | P34: 4.5 | Q34: 93 | R34: 0.0867855087 | S34: 1.75
A35: 56 x 3,0 | B35: 50 | C35: 3 | D35: 0.9 | E35: De gewenste maximale watersnelheid is 0,79 m/s | F35: 0.1 | G35: 0.5 | H35: 0.25 | I35: 0.3 | J35: 0.65 | K35: 0.64 | L35: 0.64 | M35: 85 | N35: 3000 | O35: 40 | P35: 5.1 | Q35: 93 | R35: 0.04691949717 | S35: 1.75
A36: 60 x 3,0 | B36: 57 | C36: 3 | D36: 0.9 | E36: De maximale watersnelheid kan verhoogd worden tot 1,2 m/s indien de buizen gelegen zijn in onbezette ruimten en indien er geen akoestische beperkingen van kracht zijn | F36: 0.1 | G36: 0.48 | H36: 0.24 | I36: 0.27 | J36: 0.6 | K36: 0.64 | L36: 0.64 | M36: 85 | N36: 3000 | O36: 40 | P36: 5.1 | Q36: 93 | R36: 0.02497952118 | S36: 1.75
A37: 70 x 3,0 | B37: 69 | C37: 3 | D37: 0.9 | E37: De maximale watersnelheid kan verhoogd worden tot 1,2 m/s indien de buizen gelegen zijn in onbezette ruimten en indien er geen akoestische beperkingen van kracht zijn | F37: 0.1 | G37: 0.48 | H37: 0.24 | I37: 0.27 | J37: 0.6 | K37: 0.64 | L37: 0.64 | M37: 420 | N37: 3000 | O37: 222 | P37: 5.1 | Q37: 209 | R37: 0.009963113193 | S37: 1.75
A38: 90 x 3,5 | B38: 83 | C38: 3.5 | D38: 0.9 | E38: De maximale watersnelheid kan verhoogd worden tot 1,2 m/s indien de buizen gelegen zijn in onbezette ruimten en indien er geen akoestische beperkingen van kracht zijn | F38: 0.1 | G38: 0.48 | H38: 0.24 | I38: 0.27 | J38: 0.6 | K38: 0.64 | L38: 0.64 | M38: 420 | N38: 3000 | O38: 222 | P38: 5.1 | Q38: 209 | R38: 0.004096503569 | S38: 1.75
A39: 100 x 4,3 | B39: 91.4 | C39: 4.3 | D39: 1 | E39: De maximale watersnelheid kan verhoogd worden tot 1,2 m/s indien de buizen gelegen zijn in onbezette ruimten en indien er geen akoestische beperkingen van kracht zijn | F39: 0.1 | G39: 0.48 | H39: 0.24 | I39: 0.27 | J39: 0.6 | K39: 0.64 | L39: 0.64 | M39: 800 | N39: 3000 | O39: 253.3 | P39: 5.1 | Q39: 311 | R39: 0.002576237469 | S39: 1.75
A40: 125 x 4,9 | B40: 115.2 | C40: 4.9 | D40: 1 | E40: De maximale watersnelheid kan verhoogd worden tot 1,2 m/s indien de buizen gelegen zijn in onbezette ruimten en indien er geen akoestische beperkingen van kracht zijn | F40: 0.1 | G40: 0.48 | H40: 0.24 | I40: 0.27 | J40: 0.6 | K40: 0.64 | L40: 0.64 | M40: 1010 | N40: 3000 | O40: 302 | P40: 5.1 | Q40: 459 | R40: 0.0008461554638 | S40: 1.75
A41: 150 x 6,2 | B41: 137.6 | C41: 6.2 | D41: 1 | E41: De maximale watersnelheid kan verhoogd worden tot 1,2 m/s indien de buizen gelegen zijn in onbezette ruimten en indien er geen akoestische beperkingen van kracht zijn | F41: 0.1 | G41: 0.48 | H41: 0.24 | I41: 0.27 | J41: 0.6 | K41: 0.64 | L41: 0.64 | M41: 2100 | N41: 3000 | O41: 370 | P41: 5.1 | Q41: 675 | R41: 0.0003599189843 | S41: 1.75
A42: 200 x 6,2 | B42: 187.6 | C42: 6.2 | D42: 1 | E42: De maximale watersnelheid kan verhoogd worden tot 1,2 m/s indien de buizen gelegen zijn in onbezette ruimten en indien er geen akoestische beperkingen van kracht zijn | F42: 0.1 | G42: 0.48 | H42: 0.24 | I42: 0.27 | J42: 0.6 | K42: 0.64 | L42: 0.64 | M42: 4000 | N42: 3000 | O42: 430 | P42: 5.1 | Q42: 1340 | R42: 8.101676083e-05 | S42: 1.75
A44: HDPE (Eupen Eucalene)
A45: Nominale Diameter Diamètre nominal | B45: Binnendiameter Diamètre intérieur | C45: Buisdikte Epaisseur | D45: Vmax | E45: Comment | F45: Koppeling | G45: Courbes 90° à souder r/D=1,5 | H45: Courbes 45° à souder r/D=1,5 | I45: Té (en ligne) | J45: Té (branche) | K45: Convergent | L45: Divergent | M45: Robinet à boule ou papillon | N45: Robinet de règlage (TA) | O45: Clapet de retenue | P45: Filtre | Q45: ontluchter/ vuilafscheider
B46: mm | C46: mm | D46: (m/s) | F46: z | G46: z | H46: z | I46: z | J46: z | K46: z | L46: z | M46: Kv | N46: Pa | O46: Kv | P46: z | Q46: Kv | R46: a | S46: n
A47: 20 x 2 | B47: 16 | C47: 2 | D47: 0.5 | E47: De gewenste maximale watersnelheid is 0,4 m/s | F47: 0.26 | G47: 0.26 | H47: 1.44 | I47: 0.89 | J47: 0.33 | K47: 1.41 | L47: 0.56 | M47: 0.56 | N47: 32 | O47: 8 | P47: 5.1 | Q47: 93 | R47: =7000000*B47^(-4.811) -> 11.27396815 | S47: 1.75
A48: 25 X 2,3 | B48: 20.4 | C48: 2.3 | D48: 0.5 | E48: De gewenste maximale watersnelheid is 0,42 m/s | F48: 0.43 | G48: 0.43 | H48: 1.44 | I48: 0.89 | J48: 0.54 | K48: 1.51 | L48: 0.56 | M48: 0.56 | N48: 36 | O48: 10.3 | P48: 5.1 | Q48: 93 | R48: =7000000*B48^(-4.811) -> 3.503219136 | S48: 1.75
A49: 32 x 3 | B49: 26 | C49: 3 | D49: 0.6 | E49: De gewenste maximale watersnelheid is 0,49 m/s | F49: 0.3 | G49: 0.3 | H49: 1.44 | I49: 0.51 | J49: 0.33 | K49: 1.54 | L49: 0.55 | M49: 0.55 | N49: 40 | O49: 24 | P49: 5.1 | Q49: 93 | R49: 1.090589377 | S49: 1.75
A50: 40 x 3,7 | B50: 32.6 | C50: 3.7 | D50: 0.7 | E50: De gewenste maximale watersnelheid is 0,6 m/s | F50: 0.3 | G50: 0.3 | H50: 1.44 | I50: 0.51 | J50: 0.33 | K50: 1.54 | L50: 0.55 | M50: 0.55 | N50: 50 | O50: 32 | P50: 5.1 | Q50: 93 | R50: 0.3672892066 | S50: 1.75
A51: 50 x 4,6 | B51: 40.8 | C51: 4.6 | D51: 0.8 | E51: De gewenste maximale watersnelheid is 0,66 m/s | F51: 0.3 | G51: 0.3 | H51: 1.44 | I51: 0.51 | J51: 0.33 | K51: 1.54 | L51: 0.41 | M51: 0.41 | N51: 85 | O51: 40 | P51: 5.1 | Q51: 93 | R51: 0.1247992557 | S51: 1.75
A52: 63 x 5,8 | B52: 51.4 | C52: 5.8 | D52: 0.9 | E52: De gewenste maximale watersnelheid is 0,79 m/s | F52: 0.3 | G52: 0.3 | H52: 1.44 | I52: 0.51 | J52: 0.33 | K52: 1.54 | L52: 0.6 | M52: 0.6 | N52: 215 | O52: 72.5 | P52: 5.1 | Q52: 140 | R52: 0.04108227397 | S52: 1.75
A54: LDPE (Eupen Eucalene LDPE40)
A55: Nominale Diameter Diamètre nominal | B55: Binnendiameter Diamètre intérieur | C55: Buisdikte Epaisseur | D55: Vmax | E55: Comment | F55: Koppeling | G55: Courbes 90° à souder r/D=1,5 | H55: Courbes 45° à souder r/D=1,5 | I55: Té (en ligne) | J55: Té (branche) | K55: Convergent | L55: Divergent | M55: Robinet à boule ou papillon | N55: Robinet de règlage (TA) | O55: Clapet de retenue | P55: Filtre | Q55: ontluchter/ vuilafscheider
B56: mm | C56: mm | D56: (m/s) | F56: z | G56: z | H56: z | I56: z | J56: z | K56: z | L56: z | M56: Kv | N56: Pa | O56: Kv | P56: z | Q56: Kv | R56: a | S56: n
A57: 1/2R | B57: 11.5 | C57: 4.8 | D57: 0.4 | E57: De gewenste maximale watersnelheid is 0,4 m/s | F57: 0.26 | G57: 1.44 | H57: 0.89 | I57: 0.33 | J57: 1.41 | K57: 0.56 | L57: 0.56 | M57: 32 | N57: 3000 | O57: 8 | P57: 4 | Q57: 93 | R57: =7000000*B57^(-4.811) -> 55.21800733 | S57: 1.75
A58: 3/4R | B58: 17.9 | C58: 4.8 | D58: 0.5 | E58: De gewenste maximale watersnelheid is 0,4 m/s | F58: 0.43 | G58: 1.44 | H58: 0.89 | I58: 0.54 | J58: 1.51 | K58: 0.56 | L58: 0.56 | M58: 36 | N58: 3000 | O58: 10.3 | P58: 4.5 | Q58: 93 | R58: =7000000*B58^(-4.811) -> 6.570858394 | S58: 1.75
A59: 1R | B59: 24.3 | C59: 4.8 | D59: 0.5 | E59: De gewenste maximale watersnelheid is 0,42 m/s | F59: 0.3 | G59: 1.44 | H59: 0.51 | I59: 0.33 | J59: 1.54 | K59: 0.55 | L59: 0.55 | M59: 40 | N59: 3000 | O59: 24 | P59: 5.1 | Q59: 93 | R59: 1.509893299 | S59: 1.75
A60: 5/4R | B60: 31 | C60: 5.5 | D60: 0.6 | E60: De gewenste maximale watersnelheid is 0,49 m/s | F60: 0.3 | G60: 1.44 | H60: 0.51 | I60: 0.33 | J60: 1.54 | K60: 0.55 | L60: 0.55 | M60: 50 | N60: 3000 | O60: 32 | P60: 5.1 | Q60: 93 | R60: 0.4679041865 | S60: 1.75
A61: 6/4R | B61: 36.2 | C61: 5.8 | D61: 0.7 | E61: De gewenste maximale watersnelheid is 0,6 m/s | F61: 0.3 | G61: 1.44 | H61: 0.51 | I61: 0.33 | J61: 1.54 | K61: 0.41 | L61: 0.41 | M61: 85 | N61: 3000 | O61: 40 | P61: 5.1 | Q61: 93 | R61: 0.2218968347 | S61: 1.75
A62: 2R | B62: 48.9 | C62: 7.3 | D62: 0.8 | E62: De gewenste maximale watersnelheid is 0,66 m/s | F62: 0.3 | G62: 1.44 | H62: 0.51 | I62: 0.33 | J62: 1.54 | K62: 0.6 | L62: 0.6 | M62: 215 | N62: 3000 | O62: 72.5 | P62: 5.1 | Q62: 140 | R62: 0.05221954925 | S62: 1.75
A64: Verzinkt staal / Acier Galvanisé (Geberit Mapress)
A65: Nominale Diameter Diamètre nominal | B65: Binnendiameter Diamètre extérieur | C65: Buisdikte Epaisseur | D65: Vmax | E65: Comment | F65: Koppeling | G65: Courbes 90° à souder r/D=1,5 | H65: Courbes 45° à souder r/D=1,5 | I65: Té (en ligne) | J65: Té (branche) | K65: Convergent | L65: Divergent | M65: Robinet à boule ou papillon | N65: Robinet de règlage (TA) | O65: terugslagklep/ clapet anti-retour | P65: Filtre | Q65: ontluchter/ vuilafscheider
B66: mm | C66: mm | D66: (m/s) | F66: z | G66: z | H66: z | I66: z | J66: z | K66: z | L66: z | M66: Kv | N66: Pa | O66: Kv | P66: z | Q66: Kv | R66: a | S66: n
A67: 12,0 x 1,0 | B67: 10 | C67: 1 | D67: 0.35 | E67: De gewenste maximale watersnelheid is 0,4 m/s | F67: 0.3 | G67: 0.5 | H67: 0.25 | I67: 0.3 | J67: 1 | K67: 0.09 | L67: 0.05 | M67: 32 | N67: 3000 | O67: 4 | P67: 2 | Q67: 93 | R67: 148.45 | S67: 1.709
A68: 15,0 x 1,0 | B68: 13 | C68: 1 | D68: 0.4 | E68: De gewenste maximale watersnelheid is 0,4 m/s | F68: 0.3 | G68: 0.5 | H68: 0.25 | I68: 0.3 | J68: 1 | K68: 0.09 | L68: 0.05 | M68: 32 | N68: 3000 | O68: 4 | P68: 2 | Q68: 93 | R68: 39.134 | S68: 1.73377
A69: 18,0 x 1,0 | B69: 16 | C69: 1 | D69: 0.5 | E69: De gewenste maximale watersnelheid is 0,4 m/s | F69: 0.3 | G69: 0.5 | H69: 0.25 | I69: 0.3 | J69: 1 | K69: 0.09 | L69: 0.05 | M69: 32 | N69: 3000 | O69: 4 | P69: 2 | Q69: 93 | R69: 13.83 | S69: 1.7477
A70: 22,0 x 1,2 | B70: 19.6 | C70: 1.2 | D70: 0.5 | E70: De gewenste maximale watersnelheid is 0,42 m/s | F70: 0.3 | G70: 0.5 | H70: 0.22 | I70: 0.28 | J70: 1 | K70: 0.09 | L70: 0.05 | M70: 32 | N70: 3000 | O70: 8 | P70: 3 | Q70: 93 | R70: 5.274 | S70: 1.759
A71: 28,0 x 1,2 | B71: 25.6 | C71: 1.2 | D71: 0.6 | E71: De gewenste maximale watersnelheid is 0,49 m/s | F71: 0.3 | G71: 0.43 | H71: 0.22 | I71: 0.26 | J71: 1 | K71: 0.09 | L71: 0.05 | M71: 36 | N71: 3000 | O71: 10.3 | P71: 3.5 | Q71: 93 | R71: 1.37 | S71: 1.771
A72: 35 x 1,5 | B72: 32 | C72: 1.5 | D72: 0.7 | E72: De gewenste maximale watersnelheid is 0,6 m/s | F72: 0.3 | G72: 0.41 | H72: 0.22 | I72: 0.25 | J72: 0.95 | K72: 0.07 | L72: 0.05 | M72: 40 | N72: 3000 | O72: 24 | P72: 4 | Q72: 93 | R72: 0.417 | S72: 1.774
A73: 42,0 x 1,5 | B73: 39 | C73: 1.5 | D73: 0.7 | E73: De gewenste maximale watersnelheid is 0,66 m/s | F73: 0.3 | G73: 0.4 | H73: 0.21 | I73: 0.23 | J73: 0.9 | K73: 0.05 | L73: 0.03 | M73: 50 | N73: 3000 | O73: 32 | P73: 4.5 | Q73: 93 | R73: 0.1547 | S73: 1.785
A74: 54,0 x 1,5 | B74: 51 | C74: 1.5 | D74: 0.8 | E74: De gewenste maximale watersnelheid is 0,79 m/s | F74: 0.3 | G74: 0.38 | H74: 0.2 | I74: 0.2 | J74: 0.84 | K74: 0.06 | L74: 0.04 | M74: 85 | N74: 3000 | O74: 40 | P74: 5.1 | Q74: 93 | R74: 0.04127 | S74: 1.79
A75: 76,1 x 2,0 | B75: 72.1 | C75: 2 | D75: 0.8 | E75: De maximale watersnelheid kan verhoogd worden tot 1,2 m/s indien de buizen gelegen zijn in onbezette ruimten en indien er geen akoestische beperkingen van kracht zijn | F75: 0.3 | G75: 0.35 | H75: 0.19 | I75: 0.18 | J75: 0.79 | K75: 0.05 | L75: 0.04 | M75: 215 | N75: 3000 | O75: 72.5 | P75: 5.8 | Q75: 140 | R75: 0.00732 | S75: 1.799
A76: 88,9 x 2,0 | B76: 84.9 | C76: 2 | D76: 0.9 | E76: De maximale watersnelheid kan verhoogd worden tot 1,2 m/s indien de buizen gelegen zijn in onbezette ruimten en indien er geen akoestische beperkingen van kracht zijn | F76: 0.3 | G76: 0.34 | H76: 0.18 | I76: 0.17 | J76: 0.76 | K76: 0.03 | L76: 0.03 | M76: 420 | N76: 3000 | O76: 222 | P76: 6.2 | Q76: 209 | R76: 0.00372 | S76: 1.786
A77: 108,0 x 2,0 | B77: 104 | C77: 2 | D77: 1 | E77: De maximale watersnelheid kan verhoogd worden tot 1,2 m/s indien de buizen gelegen zijn in onbezette ruimten en indien er geen akoestische beperkingen van kracht zijn | F77: 0.3 | G77: 0.31 | H77: 0.18 | I77: 0.15 | J77: 0.7 | K77: 0.03 | L77: 0.03 | M77: 800 | N77: 3000 | O77: 253.3 | P77: 6.7 | Q77: 311 | R77: 0.001439 | S77: 1.7833
A79: Inox (Geberit Mapress ; Viega 2205 & 2203)
A80: Nominale Diameter Diamètre nominal | B80: Binnendiameter Diamètre extérieur | C80: Buisdikte Epaisseur | D80: Vmax | E80: Comment | F80: Koppeling | G80: Courbes 90° à souder r/D=1,5 | H80: Courbes 45° à souder r/D=1,5 | I80: Té (en ligne) | J80: Té (branche) | K80: Convergent | L80: Divergent | M80: Robinet à boule ou papillon | N80: Robinet de règlage (TA) | O80: terugslagklep/ clapet anti-retour | P80: Filtre | Q80: ontluchter/ vuilafscheider
B81: mm | C81: mm | D81: (m/s) | F81: z | G81: z | H81: z | I81: z | J81: z | K81: z | L81: z | M81: Kv | N81: Pa | O81: Kv | P81: z | Q81: Kv | R81: a | S81: n
A82: 12,0 x 1,0 | B82: 10 | C82: 1 | D82: 0.35 | E82: De gewenste maximale watersnelheid is 0,4 m/s | F82: 0.3 | G82: 0.5 | H82: 0.25 | I82: 0.3 | J82: 1 | K82: 0.09 | L82: 0.05 | M82: 32 | N82: 3000 | O82: 4 | P82: 2 | Q82: 93 | R82: 80.369 | S82: 1.814
A83: 15,0 x 1,0 | B83: 13 | C83: 1 | D83: 0.4 | E83: De gewenste maximale watersnelheid is 0,4 m/s | F83: 0.3 | G83: 0.5 | H83: 0.25 | I83: 0.3 | J83: 1 | K83: 0.09 | L83: 0.05 | M83: 32 | N83: 3000 | O83: 4 | P83: 2 | Q83: 93 | R83: 22.424 | S83: 1.816
A84: 18,0 x 1,0 | B84: 16 | C84: 1 | D84: 0.5 | E84: De gewenste maximale watersnelheid is 0,4 m/s | F84: 0.3 | G84: 0.5 | H84: 0.25 | I84: 0.3 | J84: 1 | K84: 0.09 | L84: 0.05 | M84: 32 | N84: 3000 | O84: 4 | P84: 2 | Q84: 93 | R84: 8.0833 | S84: 1.819
A85: 22,0 x 1,2 | B85: 19.6 | C85: 1.2 | D85: 0.5 | E85: De gewenste maximale watersnelheid is 0,42 m/s | F85: 0.3 | G85: 0.5 | H85: 0.22 | I85: 0.28 | J85: 1 | K85: 0.09 | L85: 0.05 | M85: 32 | N85: 3000 | O85: 8 | P85: 3 | Q85: 93 | R85: 3.1225 | S85: 1.81
A86: 28,0 x 1,2 | B86: 25.6 | C86: 1.2 | D86: 0.6 | E86: De gewenste maximale watersnelheid is 0,49 m/s | F86: 0.3 | G86: 0.43 | H86: 0.22 | I86: 0.26 | J86: 1 | K86: 0.09 | L86: 0.05 | M86: 36 | N86: 3000 | O86: 10.3 | P86: 3.5 | Q86: 93 | R86: 1.021 | S86: 1.77
A87: 35 x 1,5 | B87: 32 | C87: 1.5 | D87: 0.7 | E87: De gewenste maximale watersnelheid is 0,6 m/s | F87: 0.3 | G87: 0.41 | H87: 0.22 | I87: 0.25 | J87: 0.95 | K87: 0.07 | L87: 0.05 | M87: 40 | N87: 3000 | O87: 24 | P87: 4 | Q87: 93 | R87: 0.237 | S87: 1.85
A88: 42,0 x 1,5 | B88: 39 | C88: 1.5 | D88: 0.8 | E88: De gewenste maximale watersnelheid is 0,66 m/s | F88: 0.3 | G88: 0.4 | H88: 0.21 | I88: 0.23 | J88: 0.9 | K88: 0.05 | L88: 0.03 | M88: 50 | N88: 3000 | O88: 32 | P88: 4.5 | Q88: 93 | R88: 0.0976 | S88: 1.836
A89: 54,0 x 1,5 | B89: 51 | C89: 1.5 | D89: 0.8 | E89: De gewenste maximale watersnelheid is 0,79 m/s | F89: 0.3 | G89: 0.38 | H89: 0.2 | I89: 0.2 | J89: 0.84 | K89: 0.06 | L89: 0.04 | M89: 85 | N89: 3000 | O89: 40 | P89: 5.1 | Q89: 93 | R89: 0.0226 | S89: 1.861
A90: 76,1 x 2,0 | B90: 72.1 | C90: 2 | D90: 0.9 | E90: De maximale watersnelheid kan verhoogd worden tot 1,2 m/s indien de buizen gelegen zijn in onbezette ruimten en indien er geen akoestische beperkingen van kracht zijn | F90: 0.3 | G90: 0.35 | H90: 0.19 | I90: 0.18 | J90: 0.79 | K90: 0.05 | L90: 0.04 | M90: 215 | N90: 3000 | O90: 72.5 | P90: 5.8 | Q90: 140 | R90: 0.0056 | S90: 1.813
A91: 88,9 x 2,0 | B91: 84.9 | C91: 2 | D91: 0.9 | E91: De maximale watersnelheid kan verhoogd worden tot 1,2 m/s indien de buizen gelegen zijn in onbezette ruimten en indien er geen akoestische beperkingen van kracht zijn | F91: 0.3 | G91: 0.34 | H91: 0.18 | I91: 0.17 | J91: 0.76 | K91: 0.03 | L91: 0.03 | M91: 420 | N91: 3000 | O91: 222 | P91: 6.2 | Q91: 209 | R91: 0.002 | S91: 1.837
A92: 108,0 x 2,0 | B92: 104 | C92: 2 | D92: 0.1 | E92: De maximale watersnelheid kan verhoogd worden tot 1,2 m/s indien de buizen gelegen zijn in onbezette ruimten en indien er geen akoestische beperkingen van kracht zijn | F92: 0.3 | G92: 0.31 | H92: 0.18 | I92: 0.15 | J92: 0.7 | K92: 0.03 | L92: 0.03 | M92: 800 | N92: 3000 | O92: 253.3 | P92: 6.7 | Q92: 311 | R92: 0.000749 | S92: 1.849
A94: Koper / Cuivre (Geberit Mapress ; Sanco ; Wicu)
A95: Nominale Diameter Diamètre nominal | B95: Binnendiameter Diamètre intérieur | C95: Buisdikte Epaisseur | D95: Vmax | E95: Comment | F95: Koppeling | G95: Courbes 90° à souder r/D=1,5 | H95: Courbes 45° à souder r/D=1,5 | I95: Té (en ligne) | J95: Té (branche) | K95: Convergent | L95: Divergent | M95: Robinet à boule ou papillon | N95: Robinet de règlage (TA) | O95: Clapet de retenue | P95: Filtre | Q95: ontluchter/ vuilafscheider
B96: mm | C96: mm | D96: (m/s) | F96: z | G96: z | H96: z | I96: z | J96: z | K96: z | L96: m | M96: Kv | N96: Pa | O96: Kv | P96: z | Q96: Kv | R96: a | S96: n
A97: 12,0 x 1,0 | B97: 10 | C97: 1 | D97: 0.35 | E97: De gewenste maximale watersnelheid is 0,4 m/s | F97: =F98*1.1 -> 1.0098 | G97: 3.377 | H97: 1.6885 | I97: 1.1286 | J97: 3.0492 | K97: 1.0483 | L97: =L98*1.1 -> 1.0483 | M97: 32 | N97: 3000 | O97: 4 | P97: 2 | Q97: 93 | R97: 116.28 | S97: 1.75
A98: 15,0 x 1,0 | B98: 13 | C98: 1 | D98: 0.4 | E98: De gewenste maximale watersnelheid is 0,4 m/s | F98: 0.918 | G98: 3.07 | H98: =G98/2 -> 1.535 | I98: 1.026 | J98: 2.772 | K98: 0.953 | L98: 0.953 | M98: 32 | N98: 3000 | O98: 4 | P98: 3 | Q98: 93 | R98: 32.048 | S98: 1.7629
A99: 18,0 x 1,0 | B99: 16 | C99: 1 | D99: 0.5 | E99: De gewenste maximale watersnelheid is 0,4 m/s | F99: 0.61 | G99: 2.839 | H99: 1.4195 | I99: 0.739 | J99: 2.126 | K99: 0.722 | L99: 0.722 | M99: 32 | N99: 3000 | O99: 8 | P99: 4 | Q99: 93 | R99: 12.923 | S99: 1.7397
A100: 22,0 x 1,0 | B100: 20 | C100: 1 | D100: 0.5 | E100: De gewenste maximale watersnelheid is 0,4 m/s | F100: 0.559 | G100: 1.87 | H100: 0.935 | I100: 0.639 | J100: 1.89 | K100: 0.838 | L100: 0.838 | M100: 36 | N100: 3000 | O100: 10.3 | P100: 4.5 | Q100: 93 | R100: 4.3613 | S100: 1.748
A101: 28,0 x 1,5 | B101: 25 | C101: 1.5 | D101: 0.5 | E101: De gewenste maximale watersnelheid is 0,4 m/s | F101: 0.504 | G101: 1.974 | H101: =G101/2 -> 0.987 | I101: 0.629 | J101: 1.974 | K101: 0.765 | L101: 0.765 | M101: 40 | N101: 3000 | O101: 24 | P101: 5.1 | Q101: 93 | R101: 1.488 | S101: 1.7525
A102: 35 x 1,5 | B102: 32 | C102: 1.5 | D102: 0.5 | E102: De gewenste maximale watersnelheid is 0,42 m/s | F102: 0.472 | G102: 1.981 | H102: =G102/2 -> 0.9905 | I102: 0.562 | J102: 1.844 | K102: 0.669 | L102: 0.669 | M102: 50 | N102: 3000 | O102: 32 | P102: 5.1 | Q102: 93 | R102: 0.1574 | S102: 1.779
A103: 42,0 x 1,5 | B103: 39 | C103: 1.5 | D103: 0.7 | E103: De gewenste maximale watersnelheid is 0,6 m/s | F103: 0.342 | G103: 1.753 | H103: 0.69 | I103: 0.407 | J103: 2 | K103: 0.813 | L103: 0.813 | M103: 215 | N103: 3000 | O103: 72.5 | P103: 5.1 | Q103: 140 | R103: 0.0465 | S103: 1.784
A104: 54,0 x 2,0 | B104: 50 | C104: 2 | D104: 0.8 | E104: De gewenste maximale watersnelheid is 0,66 m/s | F104: 0.327 | G104: 1.666 | H104: 0.614 | I104: 0.347 | J104: 1.884 | K104: 0.684 | L104: 0.684 | M104: 85 | N104: 3000 | O104: 40 | P104: 5.1 | Q104: 93 | R104: 0.0465 | S104: 1.784
A105: 64,0 x 2,0 | B105: 60 | C105: 2 | D105: 0.9 | E105: De gewenste maximale watersnelheid is 0,79 m/s | F105: 0.327 | G105: 1.666 | H105: 0.614 | I105: 0.347 | J105: 1.884 | K105: 1.6 | L105: 1.6 | M105: 215 | N105: 3000 | O105: 72.5 | P105: 5.1 | Q105: 140 | R105: =AVERAGE(R104,R106) -> 0.02715 | S105: =AVERAGE(S104,S106) -> 1.7865
A106: 76,1 x 2,0 | B106: 72.1 | C106: 2 | D106: 0.9 | E106: De maximale watersnelheid kan verhoogd worden tot 1,2 m/s indien de buizen gelegen zijn in onbezette ruimten en indien er geen akoestische beperkingen van kracht zijn | F106: 0.327 | G106: 1.666 | H106: 0.614 | I106: 0.347 | J106: 1.884 | K106: 1.6 | L106: 1.6 | M106: 215 | N106: 3000 | O106: 72.5 | P106: 5.1 | Q106: 140 | R106: 0.0078 | S106: 1.789
A107: 88,9 x 2,0 | B107: 84.99 | C107: 2 | D107: 0.9 | E107: De maximale watersnelheid kan verhoogd worden tot 1,2 m/s indien de buizen gelegen zijn in onbezette ruimten en indien er geen akoestische beperkingen van kracht zijn | F107: 0.327 | G107: 1.666 | H107: 0.614 | I107: 0.347 | J107: 1.884 | K107: 1.6 | L107: 1.6 | M107: 215 | N107: 3000 | O107: 72.5 | P107: 5.1 | Q107: 140 | R107: 0.00344 | S107: 1.795
A108: 108,0 x 2,5 | B108: 103 | C108: 2.5 | D108: 1 | E108: De maximale watersnelheid kan verhoogd worden tot 1,2 m/s indien de buizen gelegen zijn in onbezette ruimten en indien er geen akoestische beperkingen van kracht zijn | F108: 0.327 | G108: 1.666 | H108: 0.614 | I108: 0.347 | J108: 1.884 | K108: 1.6 | L108: 1.6 | M108: 215 | N108: 3000 | O108: 72.5 | P108: 5.1 | Q108: 140 | R108: 0.00132 | S108: 1.799
